bitfinex/quotes_SOLUSD_20260304
["timestamp","ask_amount","ask_price","bid_price","bid_amount"]
[1772587909849,11.4772349,87.129,87.09,9.91762142]
[1772587910049,11.4772349,87.129,87.091,4.47930733]
[1772587910495,0.1,87.13,87.101,4.47930733]
[1772587910868,5.43831409,87.16,87.112,4.42930733]
[1772587911158,5.43831409,87.16,87.121,4.42930733]
[1772587911159,0.1,87.16,87.121,4.42930733]
[1772587911365,0.1,87.16,87.131,4.42930733]
[1772587912755,11.47109326,87.176,87.141,4.37930733]
[1772587912956,5.43831409,87.17,87.141,4.37930733]
[1772587913357,11.46945872,87.189,87.151,4.37930733]
[1772587914353,11.46871219,87.194,87.161,4.37930733]
[1772587914973,5.43831409,87.19,87.161,4.37930733]
[1772587915156,11.46806138,87.199,87.161,4.37930733]
[1772587915346,11.46806138,87.199,87.163,4.37930733]
[1772587916253,40.13811493,87.199,87.163,4.37930733]
[1772587917562,11.46806138,87.199,87.163,4.37930733]
[1772587917946,11.46806138,87.199,87.151,4.37930733]
[1772587917947,5.43831409,87.19,87.151,4.37930733]
[1772587918146,5.43831409,87.19,87.152,4.37930733]
[1772587918667,0.23897147,87.179,87.132,4.37930733]
[1772587919167,0.28432314,87.189,87.141,4.37930733]
[1772587919370,5.43831409,87.18,87.141,4.37930733]
[1772587919560,5.43831409,87.17,87.131,4.37930733]
[1772587919760,5.67728556,87.17,87.131,4.37930733]
[1772587920383,5.43831409,87.17,87.131,4.37930733]
[1772587920549,0.28432314,87.178,87.131,4.37930733]
[1772587920968,5.43831409,87.17,87.131,4.37930733]
[1772587921288,0.23897147,87.149,87.108,4.37930733]
[1772587921451,131.91250184,87.179,87.121,4.37930733]
[1772587921452,5.43831409,87.17,87.121,4.37930733]
[1772587921646,5.43831409,87.17,87.094,91.85424368]
[1772587921647,11.47196824,87.169,87.141,4.37930733]
[1772587922258,40.15188885,87.169,87.141,4.37930733]
[1772587922452,40.15188885,87.169,87.123,4.37930733]
[1772587922673,40.15188885,87.169,87.095,1.14817153]
[1772587922674,5.43831409,87.14,87.09,5.43831409]
[1772587922855,131.92763481,87.169,87.1,5.43831409]
[1772587923052,5.43831409,87.16,87.11,5.43831409]
[1772587923468,11.47196824,87.169,87.12,5.43831409]
[1772587923781,11.47196824,87.169,87.13,5.43831409]
[1772587924281,11.47196824,87.169,87.121,11.47828881]
[1772587924652,11.47196824,87.169,87.122,4.21837251]
[1772587924960,11.47065233,87.179,87.141,4.21837251]
[1772587925164,15.86787772,87.185,87.141,4.21837251]
[1772587925498,5.43831409,87.18,87.141,4.21837251]
[1772587925852,11.47065233,87.179,87.142,11.47552271]
[1772587926053,11.46933672,87.189,87.151,4.21837251]
[1772587927173,40.14267854,87.189,87.151,4.21837251]
[1772587928081,40.14267854,87.189,87.152,4.21837251]
[1772587928269,45.86306924,87.217,87.151,11.47426271]
[1772587928270,0.1,87.32,87.183,0.28432314]
[1772587928464,0.2687143,87.337,87.153,0.28432314]
[1772587928465,0.2687143,87.337,87.251,4.21837251]
[1772587928777,0.2687143,87.337,87.25,5.43831409]
[1772587928778,5.43831409,87.38,87.286,0.28432314]
[1772587928975,4.40199179,87.384,87.25,21.75325636]
[1772587928976,4.40199179,87.384,87.33,5.43831409]
[1772587929173,4.40199179,87.384,87.301,0.28432314]
[1772587929174,4.40199179,87.384,87.343,3.69383402]
[1772587929377,11.43759078,87.431,87.35,5.43831409]
[1772587929581,5.43831409,87.4,87.353,3.69383402]
[1772587929779,5.43831409,87.41,87.363,3.69383402]
[1772587929964,5.43831409,87.4,87.367,3.69383402]
[1772587930164,5.43831409,87.41,87.364,11.44636234]
[1772587930458,50.05270587,87.446,87.364,11.44636234]
[1772587930459,5.43831409,87.43,87.38,5.43831409]
[1772587930768,5.43831409,87.44,87.375,4.21837251]
[1772587930977,11.43575962,87.445,87.364,40.0622682]
[1772587930978,5.43831409,87.42,87.37,5.43831409]
[1772587931157,5.43831409,87.43,87.38,5.43831409]
[1772587931353,4.39792201,87.419,87.37,5.43831409]
[1772587931983,4.39792201,87.419,87.371,11.44544528]
[1772587932172,4.39792201,87.409,87.359,3.69383402]
[1772587932476,4.39792201,87.389,87.34,5.43831409]
[1772587932675,4.68224515,87.379,87.34,11.44946043]
[1772587932861,4.68224515,87.379,87.34,16.88777452]
[1772587933380,45.73795547,87.455,87.34,16.88777452]
[1772587933381,4.39792201,87.419,87.371,4.21837251]
[1772587933563,4.39792201,87.419,87.38,5.43831409]
[1772587933964,4.39792201,87.419,87.381,11.44413545]
[1772587934261,10.02800492,87.446,87.41,5.43831409]
[1772587934464,10.02800492,87.446,87.381,11.44413545]
[1772587934465,4.39792201,87.469,87.44,5.43831409]
[1772587934659,4.39792201,87.468,87.42,5.43831409]
[1772587934871,3.69383402,87.497,87.381,223.16064132]
[1772587934872,4.39792201,87.439,87.4,5.43831409]
[1772587935067,4.39792201,87.439,87.384,3.69383402]
[1772587935270,4.39792201,87.427,87.384,3.69383402]
[1772587935573,4.39792201,87.417,87.384,3.69383402]
[1772587935778,4.39792201,87.417,87.353,4.21837251]
[1772587935779,4.39792201,87.409,87.36,5.43831409]
[1772587935989,4.39792201,87.407,87.361,11.44675541]
[1772587936182,4.39792201,87.405,87.36,5.43831409]
[1772587936373,4.68224515,87.389,87.34,5.43831409]
[1772587936578,5.43831409,87.39,87.34,5.43831409]
[1772587936579,4.39792201,87.379,87.34,5.43831409]
[1772587936959,4.39792201,87.379,87.34,16.88782176]
[1772587937191,4.39792201,87.379,87.34,5.43831409]
[1772587937389,4.39792201,87.379,87.306,45.81580382]
[1772587937390,4.39792201,87.379,87.324,15.66996472]
[1772587937572,4.39792201,87.405,87.35,5.43831409]
[1772587937766,4.39792201,87.399,87.35,5.43831409]
[1772587938287,4.49824946,87.439,87.39,5.43831409]
[1772587938576,4.49824946,87.429,87.39,5.43831409]
[1772587939561,4.34382454,87.428,87.39,5.43831409]
[1772587939976,4.34382454,87.427,87.39,5.43831409]
[1772587940187,4.34382454,87.427,87.38,5.43831409]
[1772587940383,4.34382454,87.409,87.37,5.43831409]
[1772587940681,4.34382454,87.409,87.36,5.43831409]
[1772587940873,4.34382454,87.409,87.37,5.43831409]
[1772587941186,4.34382454,87.409,87.361,11.44675541]
[1772587941388,4.34382454,87.387,87.322,4.38041312]
[1772587941587,4.34382454,87.359,87.321,11.45199894]
[1772587941758,4.34382454,87.372,87.34,5.43831409]
[1772587942161,4.34382454,87.349,87.288,11.45632847]
[1772587942382,4.34382454,87.349,87.3,5.43831409]
[1772587942684,5.43831409,87.36,87.32,5.43831409]
[1772587942983,4.34382454,87.339,87.296,4.38041312]
[1772587943164,4.34382454,87.339,87.3,5.43831409]
[1772587943889,4.34382454,87.339,87.301,11.45462251]
[1772587944274,3.74498828,87.339,87.301,11.45462251]
[1772587944786,5.3978567,87.36,87.32,5.3978567]
[1772587945081,5.3978567,87.35,87.311,4.38041312]
[1772587945382,177.37800968,87.384,87.3,16.85260841]
[1772587945578,5.3978567,87.35,87.31,5.3978567]
[1772587945779,11.44832797,87.349,87.3,21.23302153]
[1772587945982,5.3978567,87.34,87.3,21.23302153]
[1772587946166,11.44649336,87.363,87.301,4.38041312]
[1772587946364,4.34382454,87.379,87.34,5.3978567]
[1772587946568,4.34382454,87.379,87.35,5.3978567]
[1772587947089,4.34382454,87.379,87.341,4.38041312]
[1772587948277,4.34382454,87.404,87.343,4.38041312]
[1772587948475,28.59692068,87.422,87.343,4.38041312]
[1772587948476,4.34382454,87.389,87.35,5.3978567]
[1772587948878,4.34382454,87.389,87.351,4.38041312]
[1772587949179,4.34382454,87.389,87.36,5.3978567]
[1772587949375,4.34382454,87.389,87.351,4.38041312]
[1772587949979,4.34382454,87.389,87.311,1.14533105]
[1772587949980,4.34382454,87.389,87.34,5.3978567]
[1772587950182,4.34382454,87.389,87.33,16.84867543]
[1772587950371,4.34382454,87.379,87.33,16.84867543]
[1772587950572,4.34382454,87.359,87.324,11.45153184]
[1772587950889,4.34382454,87.359,87.315,11.45275149]
[1772587951087,5.3978567,87.35,87.31,5.3978567]
[1772587951286,4.34382454,87.339,87.3,5.3978567]
[1772587951488,4.34382454,87.339,87.29,5.3978567]
[1772587951683,4.34382454,87.329,87.29,16.85384649]
[1772587951992,4.34382454,87.342,87.31,5.3978567]
[1772587952591,4.34382454,87.342,87.29,40.09615475]
[1772587952592,5.3978567,87.38,87.331,4.38041312]
[1772587952788,4.34382454,87.379,87.34,5.3978567]
[1772587953682,4.34382454,87.379,87.35,5.3978567]
[1772587953882,4.34382454,87.379,87.341,4.38041312]
[1772587954084,5.3978567,87.4,87.361,4.38041312]
[1772587954393,4.34382454,87.398,87.361,4.38041312]
[1772587954578,4.34382454,87.389,87.34,5.3978567]
[1772587954778,4.34382454,87.389,87.343,11.44903222]
[1772587955295,4.34382454,87.389,87.351,4.38041312]
[1772587955535,4.34382454,87.389,87.35,5.3978567]
[1772587956075,4.34382454,87.389,87.344,4.38041312]
[1772587956497,4.34382454,87.389,87.35,5.3978567]
[1772587956787,4.34382454,87.389,87.351,40.06823046]
[1772587957007,5.3978567,87.41,87.37,5.3978567]
[1772587957174,4.34382454,87.399,87.357,4.38041312]
[1772587957374,4.34382454,87.389,87.351,11.44806584]
[1772587957990,4.34382454,87.389,87.352,4.38041312]
[1772587958185,4.34382454,87.399,87.352,4.38041312]
[1772587958387,4.34382454,87.369,87.326,11.45134324]
[1772587958692,4.34382454,87.399,87.351,4.38041312]
[1772587958896,40.0416433,87.409,87.326,40.07970134]
[1772587958897,4.34382454,87.383,87.341,11.44937658]
[1772587959095,4.34382454,87.379,87.341,11.44937658]
[1772587959485,5.3978567,87.37,87.327,4.38041312]
[1772587960003,5.3978567,87.37,87.3,5.3978567]
[1772587960004,4.34382454,87.4,87.33,5.3978567]
[1772587960184,4.34382454,87.389,87.35,5.3978567]
[1772587960392,4.34382454,87.409,87.361,4.38041312]
[1772587960611,5.3978567,87.42,87.377,4.38041312]
[1772587960782,4.34382454,87.419,87.38,5.3978567]
[1772587961105,4.34382454,87.419,87.364,28.61587831]
[1772587961106,4.34382454,87.419,87.374,11.44501696]
[1772587961300,4.34382454,87.409,87.374,11.44501696]
[1772587962687,4.34382454,87.42,87.39,5.3978567]
[1772587962886,4.34382454,87.42,87.383,4.38041312]
[1772587963101,11.4385596,87.424,87.382,11.44400448]
[1772587963102,16.83568147,87.43,87.39,9.77826982]
[1772587963404,4.34382454,87.471,87.421,4.38041312]
[1772587963579,4.34382454,87.496,87.451,4.38041312]
[1772587963790,5.3978567,87.48,87.44,5.3978567]
[1772587964104,5.3978567,87.48,87.441,4.38041312]
[1772587964299,4.34382454,87.469,87.43,5.3978567]
[1772587964612,4.34382454,87.469,87.431,4.38041312]
[1772587964899,0.1,87.47,87.441,4.38041312]
[1772587965277,28.57368547,87.494,87.432,11.43745996]
[1772587965278,4.34382454,87.516,87.461,4.38041312]
[1772587965481,4.34382454,87.509,87.461,4.38041312]
[1772587965696,4.34382454,87.499,87.451,4.38041312]
[1772587965902,4.34382454,87.499,87.46,5.3978567]
[1772587966198,11.42726545,87.51,87.44,5.3978567]
[1772587966199,4.34382454,87.479,87.44,5.3978567]
[1772587966386,4.34382454,87.489,87.45,5.3978567]
[1772587966783,4.34382454,87.479,87.44,5.3978567]
[1772587966984,4.34382454,87.479,87.441,11.43628275]
[1772587967303,4.34382454,87.469,87.43,5.3978567]
[1772587967614,4.34382454,87.469,87.427,11.43804978]
[1772587967615,4.34382454,87.501,87.46,5.3978567]
[1772587967907,4.34382454,87.499,87.461,4.38041312]
[1772587968281,4.34382454,87.499,87.431,4.05589694]
[1772587968494,4.36939345,87.489,87.45,5.3978567]
[1772587968817,5.3978567,87.48,87.445,4.05589694]
[1772587969115,4.36939345,87.487,87.446,11.43562884]
[1772587969510,4.36939345,87.479,87.431,4.05589694]
[1772587969686,4.36939345,87.469,87.42,16.83688667]
[1772587970099,40.00548646,87.488,87.413,11.43983414]
[1772587970100,4.36939345,87.459,87.413,11.43983414]
[1772587970308,4.36939345,87.449,87.413,11.43983414]
[1772587970532,4.36939345,87.439,87.398,11.44190942]
[1772587970710,4.36939345,87.439,87.4,5.3978567]
[1772587970905,4.36939345,87.439,87.402,4.05589694]
[1772587971214,4.36939345,87.439,87.401,11.44151668]
[1772587971215,4.36939345,87.46,87.421,4.05589694]
[1772587971411,4.36939345,87.459,87.421,4.05589694]
[1772587973088,4.36939345,87.459,87.423,4.05589694]
[1772587973288,4.36939345,87.459,87.422,11.43876827]
[1772587973491,4.36939345,87.429,87.38,5.3978567]
[1772587973803,4.36939345,87.429,87.381,4.05589694]
[1772587974002,4.36939345,87.429,87.37,5.3978567]
[1772587974003,5.3978567,87.44,87.391,4.05589694]
[1772587974324,5.3978567,87.44,87.401,4.05589694]
[1772587974503,9.76725015,87.44,87.401,4.05589694]
[1772587975025,40.01920921,87.458,87.412,4.05589694]
[1772587975026,4.36939345,87.454,87.412,4.05589694]
[1772587975202,5.3978567,87.45,87.412,4.05589694]
[1772587975404,5.3978567,87.43,87.387,4.05589694]
[1772587975696,4.36939345,87.441,87.387,4.05589694]
[1772587975884,4.36939345,87.441,87.38,5.3978567]
[1772587975885,9.76725015,87.43,87.388,4.05589694]
[1772587976090,4.36939345,87.429,87.38,5.3978567]
[1772587976319,5.3978567,87.42,87.377,4.05589694]
[1772587976491,4.36939345,87.419,87.377,4.05589694]
[1772587976892,5.3978567,87.41,87.377,4.05589694]
[1772587977106,4.36939345,87.417,87.377,11.44461721]
[1772587977305,4.36939345,87.417,87.38,4.05589694]
[1772587977714,4.36939345,87.417,87.38,9.45375364]
[1772587978030,4.36939345,87.417,87.377,11.44461721]
[1772587978626,9.76725015,87.41,87.372,11.44528657]
[1772587978999,9.76725015,87.41,87.357,28.61817363]
[1772587979000,4.36939345,87.409,87.366,11.44607251]
[1772587979310,4.36939345,87.407,87.37,5.3978567]
[1772587979503,4.36939345,87.407,87.362,4.05589694]
[1772587979711,5.3978567,87.4,87.362,4.05589694]
[1772587979911,4.36939345,87.399,87.362,4.05589694]
[1772587980095,4.36939345,87.389,87.348,4.05589694]
[1772587980299,4.36939345,87.389,87.26,12.19265706]
[1772587980300,4.36939345,87.379,87.335,4.05589694]
[1772587980501,4.36939345,87.369,87.324,11.45160551]
[1772587980712,4.36939345,87.369,87.33,5.3978567]
[1772587980919,4.36939345,87.399,87.351,4.05589694]
[1772587981421,4.36939345,87.389,87.342,11.44924549]
[1772587981594,4.36939345,87.389,87.351,4.05589694]
[1772587982719,4.36939345,87.429,87.351,4.05589694]
[1772587982916,4.36939345,87.458,87.411,4.05589694]
[1772587983221,4.36939345,87.458,87.42,5.3978567]
[1772587983402,4.36939345,87.458,87.422,4.05589694]
[1772587984518,4.36939345,87.449,87.41,5.3978567]
[1772587984724,4.36939345,87.449,87.4,5.3978567]
[1772587985109,1e-08,87.473,87.441,4.05589694]
[1772587985420,1e-08,87.473,87.46,5.3978567]
[1772587986021,1e-08,87.473,87.461,4.05589694]
[1772587987327,0.2687143,87.511,87.462,40.01737897]
[1772587987528,0.2687143,87.511,87.49,5.3978567]
[1772587987821,0.2687143,87.511,87.484,4.05589694]
[1772587988022,4.36939345,87.552,87.501,4.05589694]
[1772587988221,5.96965402,87.576,87.521,4.05589694]
[1772587988405,4.36939345,87.569,87.521,4.05589694]
[1772587988610,4.36939345,87.549,87.51,5.3978567]
[1772587988914,4.36939345,87.549,87.511,4.05589694]
[1772587989103,5.3978567,87.56,87.521,4.05589694]
[1772587989418,4.36939345,87.561,87.522,11.42569868]
[1772587989606,11.41956628,87.569,87.523,4.05589694]
[1772587989794,5.4978567,87.57,87.53,5.3978567]
[1772587990306,4.36939345,87.569,87.523,4.05589694]
[1772587990510,4.36939345,87.569,87.531,4.05589694]
[1772587990997,0.1,87.57,87.541,4.05589694]
[1772587991199,0.1,87.57,87.522,39.98994538]
[1772587991200,4.36939345,87.569,87.53,4.05589694]
[1772587991402,4.36939345,87.569,87.53,9.45375364]
[1772587991917,0.14216157,87.566,87.52,5.3978567]
[1772587992120,4.36939345,87.549,87.51,9.45375364]
[1772587992312,4.36939345,87.561,87.53,5.3978567]
[1772587992517,5.4978567,87.57,87.531,4.05589694]
[1772587992822,16.91735718,87.57,87.531,4.05589694]
[1772587993001,4.36939345,87.569,87.531,4.05589694]
[1772587993316,4.36939345,87.569,87.509,39.99588612]
[1772587993317,5.3978567,87.59,87.551,4.05589694]
[1772587993712,4.36939345,87.579,87.54,5.3978567]
[1772587994220,15.78769143,87.579,87.54,5.3978567]
[1772587994401,4.36939345,87.569,87.523,28.56382835]
[1772587994613,4.36939345,87.569,87.49,45.71924248]
[1772587994614,4.36939345,87.559,87.521,4.05589694]
[1772587994912,4.36939345,87.569,87.53,5.3978567]
[1772587995112,4.36939345,87.569,87.521,4.05589694]
[1772587995424,4.36939345,87.569,87.511,39.99497205]
[1772587995425,4.36939345,87.559,87.511,11.42713487]
[1772587995803,4.36939345,87.549,87.509,4.05589694]
[1772587996005,4.36939345,87.548,87.51,16.82512215]
[1772587996805,4.36939345,87.529,87.488,11.43002185]
[1772587997009,4.36939345,87.529,87.49,5.3978567]
[1772587997410,4.36939345,87.529,87.491,4.05589694]
[1772587997614,4.36939345,87.519,87.48,5.3978567]
[1772587997819,131.35513726,87.549,87.453,11.4347135]
[1772587997820,4.36939345,87.499,87.453,11.4347135]
[1772587998226,4.4057673,87.497,87.453,15.66441805]
[1772587998524,4.4057673,87.497,87.454,4.22970455]
[1772587998827,4.4057673,87.539,87.491,4.22970455]
[1772587999120,4.4057673,87.519,87.48,5.3978567]
[1772587999498,5.3978567,87.53,87.49,5.3978567]
[1772587999703,4.06297871,87.543,87.5,5.3978567]
[1772588000121,15.48606705,87.542,87.501,11.42844081]
[1772588000325,4.06297871,87.541,87.501,11.42844081]
[1772588000621,4.06297871,87.541,87.51,5.3978567]
[1772588000821,4.06297871,87.541,87.501,11.42844081]
[1772588001331,45.67273538,87.58,87.501,11.42844081]
[1772588001332,4.16297871,87.62,87.531,4.27933165]
[1772588001623,4.06297871,87.618,87.57,5.3978567]
[1772588002323,4.06297871,87.599,87.555,11.42139226]
[1772588002903,4.06297871,87.589,87.541,4.27933165]
[1772588003102,4.06297871,87.589,87.543,11.42284339]
[1772588004226,4.06297871,87.579,87.543,11.42284339]
[1772588004420,4.06297871,87.579,87.54,5.3978567]
[1772588004619,9.43194156,87.59,87.541,4.27933165]
[1772588004825,4.06297871,87.589,87.541,4.27933165]
[1772588005225,4.06297871,87.579,87.531,11.42452388]
[1772588005921,4.06297871,87.579,87.54,5.36896285]
[1772588006842,4.06297871,87.569,87.53,5.36896285]
[1772588007129,4.06297871,87.559,87.51,5.36896285]
[1772588007333,39.9643746,87.578,87.51,5.36896285]
[1772588007334,4.06297871,87.549,87.51,5.36896285]
[1772588007628,85.63794558,87.578,87.49,5.36896285]
[1772588007629,5.36896285,87.53,87.49,5.36896285]
[1772588007812,4.06297871,87.529,87.49,5.36896285]
[1772588008010,4.06297871,87.577,87.491,4.27933165]
[1772588008232,4.06297871,87.549,87.51,5.36896285]
[1772588008910,4.06297871,87.547,87.503,4.27933165]
[1772588009218,4.06297871,87.539,87.505,11.42784077]
[1772588009728,39.97806916,87.548,87.48,5.36896285]
[1772588009729,4.06297871,87.529,87.48,5.36896285]
[1772588009910,39.97806916,87.548,87.48,11.43118427]
[1772588009911,4.06297871,87.519,87.48,11.43118427]
[1772588010113,4.06297871,87.519,87.48,16.80014712]
[1772588010538,5.36896285,87.53,87.49,5.36896285]
[1772588010830,5.36896285,87.54,87.5,5.36896285]
[1772588011028,5.36896285,87.54,87.486,4.27933165]
[1772588011029,4.06297871,87.539,87.51,5.36896285]
[1772588012018,4.06297871,87.538,87.501,11.42844081]
[1772588012218,11.42347982,87.539,87.49,5.36896285]
[1772588012219,4.06297871,87.529,87.49,5.36896285]
[1772588012418,4.06297871,87.529,87.491,11.42974427]
[1772588013019,4.06297871,87.527,87.481,40.0086876]
[1772588013616,5.36896285,87.54,87.5,5.36896285]
[1772588013824,4.06297871,87.542,87.5,5.36896285]
[1772588014018,4.06297871,87.542,87.51,5.36896285]
[1772588014420,4.06297871,87.542,87.5,9.6482945]
[1772588014822,4.06297871,87.568,87.53,5.36896285]
[1772588015034,4.06297871,87.559,87.53,11.42459077]
[1772588015250,11.4198271,87.567,87.509,11.42739603]
[1772588015251,4.06297871,87.549,87.509,11.42739603]
[1772588015563,4.06297871,87.559,87.511,4.27933165]
[1772588016043,4.06297871,87.559,87.52,5.36896285]
[1772588016240,4.06297871,87.559,87.511,4.27933165]
[1772588016618,4.06297871,87.559,87.53,5.36896285]
[1772588016831,4.06297871,87.568,87.53,5.36896285]
[1772588017031,4.06297871,87.568,87.521,4.27933165]
[1772588017430,5.36896285,87.6,87.531,4.27933165]
[1772588017431,9.43194156,87.58,87.531,4.27933165]
[1772588017732,4.06297871,87.578,87.54,5.36896285]
[1772588018322,4.06297871,87.578,87.53,5.36896285]
[1772588018522,4.06297871,87.569,87.52,5.36896285]
[1772588018720,4.06297871,87.559,87.521,11.42582922]
[1772588018948,4.06297871,87.549,87.521,11.42582922]
[1772588019924,3.56297871,87.549,87.512,28.56751074]
[1772588020641,11.42230547,87.548,87.511,11.42713487]
[1772588020853,5.36896285,87.54,87.501,11.42844081]
[1772588021141,11.42230547,87.548,87.501,39.99954285]
[1772588022022,4.06297871,87.538,87.501,39.99954285]
[1772588022631,4.06297871,87.538,87.501,11.42844081]
[1772588022828,4.06297871,87.538,87.476,4.27933165]
[1772588022829,4.06297871,87.519,87.47,5.36896285]
[1772588023032,4.06297871,87.519,87.476,28.57921595]
[1772588023927,4.06297871,87.518,87.476,28.57921595]
[1772588024141,4.06297871,87.518,87.48,5.36896285]
[1772588024438,5.36896285,87.54,87.491,4.27933165]
[1772588024625,16.79231217,87.54,87.491,4.27933165]
[1772588024825,5.36896285,87.54,87.491,4.27933165]
[1772588025735,16.79231217,87.54,87.491,4.27933165]
[1772588025936,5.36896285,87.53,87.492,40.00365747]
[1772588026342,5.36896285,87.52,87.492,11.42961642]
[1772588026537,4.06297871,87.519,87.492,11.42961642]
[1772588026848,4.06297871,87.519,87.479,28.57827028]
[1772588027150,4.06297871,87.519,87.48,11.43118427]
[1772588027533,4.06297871,87.509,87.48,11.43118427]
[1772588027847,4.06297871,87.519,87.48,28.57796067]
[1772588028043,4.29031808,87.517,87.471,40.01326152]
[1772588028442,4.29031808,87.517,87.472,4.05084858]
[1772588028838,4.29031808,87.517,87.471,40.01326152]
[1772588028839,102.75849469,87.584,87.491,4.05084858]
[1772588029056,5.36896285,87.53,87.491,4.05084858]
[1772588029435,5.36896285,87.54,87.491,4.05084858]
[1772588029628,5.36896285,87.54,87.501,4.05084858]
[1772588030047,11.42347982,87.539,87.503,4.05084858]
[1772588030348,57.08805261,87.584,87.503,4.05084858]
[1772588030349,5.36896285,87.55,87.503,4.05084858]
[1772588030575,5.36896285,87.56,87.511,4.05084858]
[1772588030754,5.36896285,87.56,87.52,9.41981143]
[1772588030955,5.36896285,87.56,87.52,4.05084858]
[1772588031248,5.36896285,87.57,87.521,4.05084858]
[1772588031938,9.65928093,87.57,87.521,4.05084858]
[1772588032249,15.70988436,87.569,87.523,4.05084858]
[1772588032557,4.29031808,87.569,87.523,4.05084858]
[1772588032750,5.36896285,87.56,87.523,4.05084858]
[1772588033053,5.36896285,87.59,87.541,4.05084858]
[1772588033247,5.36896285,87.58,87.541,4.05084858]
[1772588033438,5.36896285,87.57,87.541,4.05084858]
[1772588033638,4.29031808,87.579,87.541,4.05084858]
[1772588034155,5.36896285,87.57,87.542,11.42308834]
[1772588034449,4.29031808,87.569,87.542,11.42308834]
[1772588034656,5.36896285,87.55,87.521,11.42582922]
[1772588034962,4.29031808,87.549,87.511,11.42713487]
[1772588035146,39.9643746,87.578,87.521,4.05084858]
[1772588035147,9.65928093,87.57,87.521,4.05084858]
[1772588035539,4.29031808,87.569,87.521,4.05084858]
[1772588036147,5.36896285,87.56,87.523,4.05084858]
[1772588036546,4.29031808,87.567,87.523,4.05084858]
[1772588036751,5.36896285,87.57,87.531,4.05084858]
[1772588037451,4.29031808,87.569,87.531,4.05084858]
[1772588038137,11.41969669,87.568,87.532,11.42439336]
[1772588038347,5.36896285,87.56,87.532,11.42439336]
[1772588038754,4.29031808,87.567,87.532,11.42439336]
[1772588039364,4.29031808,87.56,87.512,4.05084858]
[1772588039657,5.36896285,87.57,87.53,9.41981143]
[1772588039860,5.36896285,87.57,87.53,4.05084858]
[1772588040238,11.41956628,87.569,87.531,11.42452388]
[1772588040564,11.41956628,87.569,87.503,45.71249895]
[1772588040565,5.36896285,87.55,87.511,4.05084858]
[1772588040762,39.96848199,87.569,87.511,4.05084858]
[1772588040763,5.36896285,87.54,87.511,4.05084858]
[1772588041066,4.29031808,87.549,87.511,4.05084858]
[1772588041445,5.36896285,87.55,87.511,4.05084858]
[1772588041840,39.96848199,87.569,87.511,4.05084858]
[1772588041841,9.65928093,87.56,87.511,4.05084858]
[1772588042041,4.29031808,87.559,87.511,4.05084858]
[1772588042461,4.29031808,87.549,87.5,5.36896285]
[1772588042661,5.36896285,87.52,87.478,4.05084858]
[1772588042847,5.36896285,87.55,87.479,11.43131494]
[1772588042848,5.36896285,87.51,87.479,11.43131494]
[1772588043049,4.29031808,87.541,87.491,4.05084858]
[1772588043373,4.29031808,87.539,87.491,4.05084858]
[1772588043556,9.65928093,87.53,87.491,4.05084858]
[1772588044060,5.36896285,87.55,87.511,4.05084858]
[1772588044249,5.36896285,87.56,87.511,4.05084858]
[1772588044451,5.36896285,87.56,87.523,4.05084858]
[1772588044651,5.36896285,87.55,87.522,11.42569868]
[1772588045050,4.29031808,87.558,87.522,11.42569868]
[1772588045252,5.36896285,87.56,87.523,4.05084858]
[1772588045878,4.29031808,87.599,87.53,5.36896285]
[1772588046072,4.29031808,87.589,87.541,4.05084858]
[1772588046564,5.36896285,87.58,87.542,44.03165778]
[1772588046953,5.36896285,87.58,87.543,4.05084858]
[1772588048096,5.36896285,87.55,87.511,4.05084858]
[1772588048246,5.36896285,87.57,87.531,4.05084858]
[1772588048447,5.36896285,87.58,87.541,11.42321883]
[1772588048672,4.29031808,87.579,87.542,4.05084858]
[1772588048976,67.21230018,87.65,87.57,5.36896285]
[1772588048977,5.36896285,87.61,87.57,5.36896285]
[1772588049160,5.36896285,87.61,87.571,4.05084858]
[1772588049960,4.29031808,87.609,87.571,4.05084858]
[1772588050662,5.36896285,87.6,87.571,11.4192499]
[1772588051184,11.41390507,87.613,87.572,4.05084858]
[1772588051581,45.6198116,87.682,87.571,39.96751359]
[1772588051582,0.1,87.65,87.601,4.05084858]
[1772588051762,0.1,87.65,87.6,5.36896285]
[1772588051763,5.46896285,87.65,87.611,4.05084858]
[1772588051956,0.1,87.65,87.621,4.05084858]
[1772588052292,0.1,87.65,87.571,234.0957067]
[1772588052293,4.29031808,87.629,87.571,11.4192499]
[1772588052576,4.29031808,87.629,87.574,4.05084858]
[1772588052577,11.41187748,87.628,87.574,4.05084858]
[1772588052784,5.36896285,87.63,87.581,4.05084858]
[1772588053111,11.41174725,87.629,87.591,4.05084858]
[1772588053259,5.36896285,87.62,87.591,4.05084858]
[1772588053463,5.36896285,87.63,87.591,4.05084858]
[1772588053667,5.36896285,87.62,87.591,4.05084858]
[1772588054258,9.65928093,87.6,87.567,11.41982116]
[1772588054689,5.36896285,87.6,87.562,4.05084858]
[1772588054863,5.36896285,87.59,87.562,4.05084858]
[1772588055064,5.36896285,87.6,87.562,4.05084858]
[1772588055259,5.36896285,87.61,87.571,4.05084858]
[1772588055474,0.1,87.64,87.581,4.05084858]
[1772588055673,5.46896285,87.64,87.591,4.05084858]
[1772588055862,5.46896285,87.64,87.6,5.36896285]